bitfinex/quotes_SOLUSD_20260120
["timestamp","ask_amount","ask_price","bid_price","bid_amount"]
[1768931102697,7.88394828,126.84,126.76,6.2]
[1768931102698,2.69071513,126.82,126.77,2.69071513]
[1768931103015,2.78927154,126.82,126.78,4.38588516]
[1768931103201,2.69071513,126.83,126.79,4.38588516]
[1768931103400,4.10920749,126.78,126.71,25.41618941]
[1768931103603,6.79992262,126.79,126.74,2.69071513]
[1768931103804,6.79992262,126.79,126.74,8.89071513]
[1768931104223,2.69071513,126.77,126.74,6.2]
[1768931104912,6.79992262,126.79,126.74,6.2]
[1768931105107,10.57657284,126.81,126.76,2.69071513]
[1768931105414,2.69071513,126.79,126.75,4.38588516]
[1768931105916,2.69071513,126.8,126.76,4.38588516]
[1768931106807,2.69071513,126.81,126.76,4.38588516]
[1768931107592,2.69071513,126.8,126.76,4.38588516]
[1768931107791,2.69071513,126.82,126.77,4.38588516]
[1768931108000,14.68478534,126.83,126.78,4.38588516]
[1768931108395,2.69071513,126.82,126.78,4.38588516]
[1768931109500,2.69071513,126.81,126.78,4.38588516]
[1768931109898,11.99478567,126.82,126.78,4.38588516]
[1768931110197,14.6855008,126.82,126.78,4.38588516]
[1768931110421,2.69071513,126.82,126.78,4.38588516]
[1768931110611,7.88423208,126.84,126.8,4.38588516]
[1768931110818,10.57494721,126.84,126.8,4.38588516]
[1768931111295,10.5756024,126.83,126.8,4.38588516]
[1768931111501,14.68480989,126.83,126.79,4.38588516]
[1768931111699,2.69071513,126.82,126.79,4.38588516]
[1768931112197,2.69071513,126.81,126.78,17.28]
[1768931112596,6.79992262,126.8,126.78,17.28]
[1768931113009,4.10920749,126.79,126.76,17.28]
[1768931113226,4.10920749,126.81,126.77,4.38588516]
[1768931113521,14.68530293,126.82,126.78,4.38588516]
[1768931113713,2.69071513,126.81,126.78,4.38588516]
[1768931114022,14.68530293,126.82,126.78,4.38588516]
[1768931115119,14.84479619,126.84,126.8,4.13898878]
[1768931116926,14.84260748,126.84,126.8,4.13898878]
[1768931117503,10.57209959,126.85,126.81,4.13898878]
[1768931118109,7.88357317,126.85,126.81,6.8275152]
[1768931119338,12.15355312,126.85,126.81,6.8275152]
[1768931123407,12.15299417,126.86,126.82,4.13898878]
[1768931123922,4.26997995,126.85,126.81,6.8275152]
[1768931125025,7.88303237,126.86,126.82,2.68852642]
[1768931125208,7.88303237,126.86,126.83,4.13898878]
[1768931125818,12.35214726,126.87,126.84,4.13898878]
[1768931126012,15.04067368,126.87,126.82,2.68852642]
[1768931126227,6.95850637,126.85,126.82,17.28]
[1768931126832,14.84226668,126.85,126.82,17.28]
[1768931127009,12.15374026,126.85,126.82,17.28]
[1768931127212,14.84226668,126.85,126.81,4.13898878]
[1768931127807,12.15374026,126.85,126.81,4.13898878]
[1768931128210,6.95850637,126.84,126.79,6.8275152]
[1768931128416,4.26997995,126.83,126.79,24.1075152]
[1768931128616,4.26997995,126.83,126.8,4.13898878]
[1768931128816,7.88456989,126.83,126.8,4.13898878]
[1768931129022,6.95850637,126.81,126.77,4.13898878]
[1768931129214,6.95850637,126.81,126.7,2.68852642]
[1768931129215,4.26997995,126.79,126.75,4.13898878]
[1768931129431,6.95850637,126.78,126.74,4.13898878]
[1768931129632,6.95850637,126.77,126.73,4.13898878]
[1768931129835,2.68852642,126.76,126.72,17.28]
[1768931130218,6.95850637,126.76,126.71,4.13898878]
[1768931130415,2.68852642,126.75,126.71,4.13898878]
[1768931130618,2.62852635,126.75,126.71,4.13898878]
[1768931130833,6.95850637,126.76,126.71,4.13898878]
[1768931131030,6.95850637,126.74,126.7,4.13898878]
[1768931133115,14.84904676,126.74,126.7,4.13898878]
[1768931133729,12.16052034,126.74,126.7,4.13898878]
[1768931133931,12.16052034,126.74,126.7,6.8275152]
[1768931133932,7.89054039,126.74,126.7,6.8275152]
[1768931134235,7.89054039,126.74,126.7,4.13898878]
[1768931134611,14.84820226,126.75,126.71,4.13898878]
[1768931135612,6.95850637,126.74,126.7,4.13898878]
[1768931136433,4.26997995,126.73,126.68,21.41898878]
[1768931136636,6.95850637,126.69,126.65,0.1]
[1768931137037,6.95850637,126.69,126.65,4.23898878]
[1768931137232,6.95850637,126.67,126.63,4.23898878]
[1768931137427,2.68852642,126.71,126.67,4.13898878]
[1768931137629,14.85031098,126.72,126.67,2.68852642]
[1768931137829,10.58033103,126.72,126.64,17.28]
[1768931138030,2.68852642,126.74,126.69,2.68852642]
[1768931138242,6.95850637,126.74,126.69,2.68852642]
[1768931138537,14.84887795,126.74,126.68,2.68852642]
[1768931139429,14.84887795,126.74,126.69,2.68852642]
[1768931139633,14.84887795,126.74,126.69,6.8275152]
[1768931140645,14.84887795,126.74,126.7,6.8275152]
[1768931140836,12.16035153,126.74,126.71,2.68852642]
[1768931141446,7.89037158,126.74,126.71,6.8275152]
[1768931143945,7.88981397,126.75,126.72,4.09381499]
[1768931144126,24.20140186,126.78,126.74,6.78234141]
[1768931144331,12.36923025,126.78,126.74,6.78234141]
[1768931144930,15.05775667,126.78,126.74,4.09381499]
[1768931145126,15.05775667,126.78,126.74,6.78234141]
[1768931145630,15.05775667,126.78,126.74,4.09381499]
[1768931146333,10.57647736,126.78,126.74,2.68852642]
[1768931146538,7.88795094,126.78,126.75,7.11166604]
[1768931146746,7.88795094,126.78,126.75,4.42313962]
[1768931146943,7.88795094,126.78,126.75,7.11166604]
[1768931147342,7.88795094,126.78,126.75,4.42313962]
[1768931147652,7.88795094,126.78,126.75,7.11166604]
[1768931147948,4.45144004,126.77,126.73,4.42313962]
[1768931148140,7.88795094,126.78,126.74,7.11166604]
[1768931148445,7.88795094,126.78,126.75,7.11166604]
[1768931148645,7.88795094,126.78,126.76,4.42313962]
[1768931149444,7.88795094,126.78,126.75,7.11166604]
[1768931149629,7.88795094,126.78,126.75,4.42313962]
[1768931149829,7.88795094,126.78,126.75,7.11166604]
[1768931150030,7.88795094,126.78,126.76,4.42313962]
[1768931150934,7.88795094,126.78,126.75,7.11166604]
[1768931151868,7.88795094,126.78,126.75,4.42313962]
[1768931154853,7.88795094,126.78,126.75,7.11166604]
[1768931155951,4.45144004,126.75,126.71,7.11166604]
[1768931156134,4.45144004,126.74,126.7,7.11166604]
[1768931156856,7.89079144,126.73,126.7,7.11166604]
[1768931158656,7.89079144,126.73,126.68,4.42313962]
[1768931158657,4.45144004,126.72,126.68,4.42313962]
[1768931159052,12.34322803,126.72,126.68,4.42313962]
[1768931159252,15.03175445,126.72,126.68,4.42313962]
[1768931159454,12.34322803,126.72,126.68,7.11166604]
[1768931159835,15.03175445,126.72,126.68,4.42313962]
[1768931160453,12.34322803,126.72,126.68,7.11166604]
[1768931160659,15.03175445,126.72,126.68,4.42313962]
[1768931160844,4.45144004,126.7,126.67,17.28]
[1768931161051,4.45144004,126.7,126.66,10.62313962]
[1768931161052,15.03315133,126.7,126.66,10.62313962]
[1768931161249,4.45144004,126.68,126.64,24.39166604]
[1768931161455,7.13996646,126.67,126.63,0.1]
[1768931162364,7.13996646,126.67,126.63,4.52313962]
[1768931163053,15.03479244,126.67,126.63,4.52313962]
[1768931164663,12.34626602,126.67,126.63,4.52313962]
[1768931164858,15.03479244,126.67,126.63,4.52313962]
[1768931165957,12.34678556,126.66,126.63,0.1]
[1768931166154,4.45144004,126.66,126.63,0.1]
[1768931166344,4.45144004,126.71,126.66,4.42313962]
[1768931166764,7.13996646,126.71,126.66,7.11166604]
[1768931167473,7.89265982,126.7,126.66,7.11166604]
[1768931167968,12.34409986,126.7,126.66,7.11166604]
[1768931168163,7.13996646,126.69,126.64,4.42313962]
[1768931168466,4.45144004,126.69,126.65,7.11166604]
[1768931168763,15.03262628,126.7,126.66,4.42313962]
[1768931168963,4.45144004,126.7,126.66,7.11166604]
[1768931169156,7.13996646,126.7,126.66,4.42313962]
[1768931169754,15.03294354,126.7,126.66,4.42313962]
[1768931169953,4.45144004,126.69,126.65,7.11166604]
[1768931170264,4.45144004,126.71,126.67,7.11166604]
[1768931170471,12.34363255,126.71,126.67,7.08166604]
[1768931170857,15.03215897,126.71,126.67,4.39313962]
[1768931171168,7.89219251,126.71,126.67,2.68852642]
[1768931171370,7.89149279,126.72,126.68,2.68852642]
[1768931171867,12.34293283,126.72,126.68,2.68852642]
[1768931172167,12.34293283,126.72,126.65,2.68852642]
[1768931172467,4.45144004,126.71,126.67,7.11166604]
[1768931172664,4.45144004,126.68,126.64,4.42313962]
[1768931172847,7.13996646,126.66,126.63,0.1]
[1768931173051,4.45144004,126.66,126.63,0.1]
[1768931173472,4.45144004,126.65,126.63,1e-08]
[1768931173768,7.13996646,126.65,126.63,1e-08]
[1768931173965,4.45144004,126.65,126.63,1e-08]
[1768931174149,10.58420155,126.66,126.63,1e-08]
[1768931174351,7.89567513,126.66,126.63,1e-08]
[1768931174851,4.43467658,126.65,126.63,1e-08]
[1768931175051,7.123203,126.65,126.63,1e-08]
[1768931175252,7.89567513,126.66,126.62,1e-08]
[1768931175253,4.43467658,126.63,126.62,1e-08]
[1768931175665,2.68852642,126.64,126.62,1e-08]
[1768931175979,2.68852642,126.64,126.57,17.3]
[1768931175980,12.33258681,126.62,126.58,4.36404438]
[1768931176167,15.02111323,126.62,126.58,4.36404438]
[1768931176759,2.68852642,126.61,126.57,21.66404438]
[1768931176958,6.74629944,126.61,126.57,4.36404438]
[1768931177154,27.64202648,126.62,126.54,0.1]
[1768931177361,4.43467658,126.61,126.56,4.36404438]
[1768931177565,4.43467658,126.6,126.55,11.11034382]
[1768931177771,4.43467658,126.59,126.55,4.36404438]
[1768931177970,4.43467658,126.59,126.54,0.1]
[1768931177971,4.43467658,126.58,126.54,0.1]
[1768931178185,4.43467658,126.57,126.54,0.1]
[1768931178386,11.18097602,126.57,126.54,0.1]
[1768931178669,11.18097602,126.56,126.51,21.66404438]
[1768931178868,6.74629944,126.55,126.51,17.3]
[1768931179253,11.18097602,126.53,126.5,0.1]
[1768931179455,11.18097602,126.51,126.45,4.36404438]
[1768931179654,6.74629944,126.52,126.47,11.11034382]
[1768931179950,19.0838709,126.54,126.49,4.36404438]
[1768931180153,11.18097602,126.53,126.47,11.11034382]
[1768931180377,11.18097602,126.54,126.49,4.36404438]
[1768931180679,7.90144801,126.56,126.52,11.11034382]
[1768931180866,19.08242403,126.56,126.52,4.36404438]
[1768931181063,19.08242403,126.56,126.5,4.36404438]
[1768931181260,6.74629944,126.53,126.48,11.11034382]
[1768931181467,6.74629944,126.52,126.46,11.11034382]
[1768931181780,11.18097602,126.51,126.46,11.11034382]
[1768931182083,12.33934084,126.51,126.46,11.11034382]
[1768931182255,19.75833714,126.53,126.46,4.36404438]
[1768931182256,11.18097602,126.52,126.46,4.36404438]
[1768931182460,4.43467658,126.52,126.48,6.74629944]
[1768931182974,4.43467658,126.49,126.43,4.36404438]
[1768931183177,27.66142416,126.53,126.46,6.74629944]
[1768931183178,7.21841828,126.51,126.46,6.74629944]
[1768931183359,0.47211884,126.51,126.46,4.36404438]
[1768931183558,4.43467658,126.49,126.44,11.11034382]
[1768931183764,4.43467658,126.49,126.45,6.74629944]
[1768931184162,4.43467658,126.49,126.42,4.36404438]
[1768931184163,4.43467658,126.48,126.42,4.36404438]
[1768931184678,7.90604831,126.49,126.44,11.11034382]
[1768931184979,11.18097602,126.49,126.44,11.11034382]
[1768931185368,4.43467658,126.49,126.44,4.36404438]
[1768931185564,34.41434444,126.5,126.44,4.36404438]
[1768931185565,14.6514986,126.5,126.45,4.36404438]
[1768931185757,19.08617518,126.5,126.45,4.36404438]
[1768931186165,19.08617518,126.5,126.42,11.11034382]
[1768931186166,4.43467658,126.47,126.42,11.11034382]
[1768931186474,4.43467658,126.44,126.38,4.36404438]
[1768931186682,6.74629944,126.43,126.38,4.36404438]
[1768931186856,6.74629944,126.43,126.38,11.11034382]
[1768931187060,17.32,126.48,126.37,17.3]
[1768931187061,4.43467658,126.46,126.4,4.36404438]
[1768931187287,4.43467658,126.45,126.41,6.74629944]
[1768931187585,11.18097602,126.45,126.41,4.36404438]
[1768931187879,11.18097602,126.45,126.37,17.3]
[1768931187880,11.18097602,126.45,126.39,11.11034382]
[1768931188074,11.18097602,126.45,126.4,4.36404438]
[1768931188267,6.74629944,126.44,126.4,4.36404438]
[1768931188466,11.18097602,126.43,126.38,4.36404438]
[1768931188664,11.18097602,126.42,126.37,4.36404438]
[1768931188863,11.18097602,126.41,126.35,11.11034382]
[1768931189079,11.18097602,126.4,126.35,4.36404438]
[1768931189276,4.43467658,126.4,126.35,4.36404438]
[1768931189484,11.18097602,126.39,126.34,5.43757277]
[1768931189696,6.74629944,126.42,126.34,1.07352839]
[1768931189697,11.18097602,126.38,126.34,1.07352839]
[1768931189893,4.43467658,126.41,126.36,6.74629944]
[1768931190060,4.43467658,126.4,126.34,13.35264448]
[1768931190383,19.09129291,126.42,126.37,11.11034382]
[1768931190682,4.43467658,126.44,126.39,11.11034382]
[1768931190868,7.90835875,126.45,126.41,6.74629944]
[1768931191068,4.43467658,126.48,126.43,4.36404438]
[1768931191581,4.43467658,126.48,126.42,11.11034382]
[1768931191582,4.43467658,126.47,126.42,11.11034382]
[1768931191906,4.43467658,126.47,126.43,6.74629944]
[1768931192268,0.4744,126.45,126.43,6.74629944]
[1768931192766,0.4744,126.45,126.42,11.11034382]
[1768931193169,0.4744,126.45,126.43,11.11034382]
[1768931193472,0.4744,126.45,126.42,6.74629944]
[1768931193782,6.74629944,126.44,126.39,28.43034382]
[1768931193974,6.74629944,126.43,126.39,21.68404438]
[1768931194179,19.09029274,126.44,126.39,28.43034382]
[1768931194567,19.03029275,126.44,126.39,28.43034382]
[1768931194768,19.03029275,126.44,126.39,4.36404438]
[1768931194986,19.03029275,126.44,126.39,11.11034382]
[1768931195184,0.4744,126.45,126.41,11.11034382]
[1768931195374,0.4744,126.45,126.43,6.74629944]
[1768931195576,0.4744,126.45,126.44,6.74629944]
[1768931195972,14.65143777,126.5,126.44,11.11034382]
[1768931196172,6.74629944,126.52,126.47,11.11034382]
[1768931196499,7.90402536,126.52,126.47,11.11034382]
[1768931196665,7.90402536,126.52,126.48,6.74629944]
[1768931197173,30.93950672,126.53,126.49,6.74629944]
[1768931197174,12.33807939,126.53,126.49,6.74629944]
[1768931197375,4.43467658,126.53,126.49,6.74629944]
[1768931197584,14.64915952,126.54,126.49,11.11034382]
[1768931197979,6.74629944,126.53,126.48,6.74629944]
[1768931198188,7.90513833,126.5,126.45,28.43034382]
[1768931198387,27.66798417,126.5,126.43,4.36404438]
[1768931198685,6.74629944,126.49,126.44,11.11034382]
[1768931198894,6.74629944,126.48,126.44,4.36404438]
[1768931199066,27.66798417,126.5,126.44,11.11034382]
[1768931199270,7.90513833,126.5,126.46,11.11034382]
[1768931199480,19.08571357,126.51,126.46,11.08034382]
[1768931199677,19.08571357,126.51,126.46,4.33404438]
[1768931199879,11.18097602,126.51,126.46,11.08034382]
[1768931200064,6.74629944,126.52,126.47,6.74629944]
[1768931200266,19.08450863,126.53,126.48,6.74629944]
[1768931200482,4.43467658,126.53,126.48,6.74629944]
[1768931200790,6.74629944,126.49,126.43,6.74629944]
[1768931200998,6.74629944,126.48,126.42,6.74629944]
[1768931201173,6.74629944,126.48,126.43,6.74629944]
[1768931201374,6.74629944,126.48,126.43,11.11034382]
[1768931201687,6.74629944,126.5,126.45,4.36404438]
[1768931201894,11.18097602,126.5,126.45,4.36404438]
[1768931202096,11.18097602,126.49,126.44,6.74629944]
[1768931202269,56.83837268,126.53,126.41,24.06629944]
[1768931202270,19.08861479,126.46,126.41,24.06629944]
[1768931202591,6.74629944,126.45,126.41,17.32]
[1768931202793,6.74629944,126.45,126.4,11.11034382]
[1768931203102,12.34231535,126.46,126.41,11.11034382]
[1768931203103,19.08861479,126.46,126.41,11.11034382]
[1768931203396,19.08861479,126.46,126.41,4.36404438]
[1768931203694,7.90763877,126.46,126.41,4.36404438]
[1768931203899,6.74629944,126.47,126.43,4.18370821]
[1768931204072,6.74629944,126.49,126.44,10.93000765]
[1768931204408,17.32,126.52,126.37,28.62060176]
[1768931204409,6.74629944,126.51,126.47,4.18370821]
[1768931204570,18.77130301,126.52,126.47,10.93000765]
[1768931204769,18.77130301,126.52,126.47,4.18370821]
[1768931205271,6.74629944,126.51,126.47,4.18370821]
[1768931205778,6.74629944,126.51,126.43,17.32]
[1768931205779,10.99874067,126.49,126.43,21.51293685]
[1768931205987,6.74629944,126.48,126.43,28.25923629]
[1768931206369,14.65276375,126.48,126.43,28.25923629]
[1768931206882,14.65276375,126.48,126.43,21.51293685]
[1768931206883,6.74629944,126.47,126.43,21.51293685]
[1768931207071,6.74629944,126.45,126.41,4.19293685]
[1768931207692,6.74629944,126.46,126.41,10.93923629]
[1768931207886,6.74629944,126.48,126.44,4.19293685]
[1768931208200,10.99874067,126.46,126.4,4.19293685]
[1768931208395,10.99874067,126.46,126.41,4.19293685]
[1768931208396,18.90674897,126.46,126.41,4.19293685]
[1768931208789,6.74629944,126.44,126.39,4.19293685]
[1768931209101,6.74629944,126.44,126.39,10.93923629]
[1768931209296,6.74629944,126.44,126.4,4.19293685]
[1768931209500,4.25244123,126.4,126.36,6.74629944]
[1768931209700,10.99874067,126.4,126.35,4.19293685]
[1768931209881,6.74629944,126.41,126.37,4.19293685]
[1768931210212,4.25244123,126.43,126.35,6.74629944]
[1768931210379,18.90838567,126.43,126.38,6.74629944]
[1768931210578,10.99874067,126.43,126.38,6.74629944]
[1768931210780,18.90662674,126.46,126.4,6.74629944]
[1768931211025,10.99874067,126.46,126.4,6.74629944]
[1768931211317,4.25244123,126.44,126.38,17.32]
[1768931211523,10.99874067,126.44,126.38,24.06629944]
[1768931211681,7.90780725,126.46,126.38,24.06629944]
[1768931211682,10.99874067,126.43,126.38,24.06629944]
[1768931211882,10.99874067,126.42,126.38,17.32]
[1768931212107,4.25244123,126.42,126.38,17.32]
[1768931212279,18.90961934,126.41,126.38,17.32]
[1768931212484,18.90961934,126.41,126.36,10.93923629]
[1768931212485,10.93874068,126.41,126.36,10.93923629]
[1768931212694,10.87874069,126.41,126.36,10.93923629]
[1768931212889,27.67892447,126.45,126.38,6.74629944]
[1768931213100,6.74629944,126.45,126.4,10.93923629]
[1768931213396,14.65400896,126.46,126.41,6.74629944]
[1768931213590,6.74629944,126.47,126.42,10.93923629]
[1768931213892,14.65331721,126.47,126.42,10.93923629]
[1768931214096,6.74629944,126.49,126.43,6.74629944]
[1768931214300,6.74629944,126.49,126.44,10.93923629]
[1768931214610,6.74629944,126.47,126.41,6.74629944]
[1768931214811,10.99874067,126.46,126.41,10.93923629]
[1768931215314,27.67235926,126.48,126.4,10.93923629]
[1768931215315,10.99874067,126.45,126.4,10.93923629]
[1768931215515,10.99874067,126.45,126.41,6.74629944]
[1768931215516,4.25244123,126.45,126.41,6.74629944]
[1768931215809,10.99874067,126.45,126.4,4.19293685]
[1768931216192,10.99874067,126.43,126.39,17.32]
[1768931217104,18.90837971,126.43,126.39,17.32]
[1768931217411,6.74629944,126.42,126.39,17.32]
[1768931217588,10.99874067,126.4,126.35,6.74629944]
[1768931217791,4.25244123,126.4,126.35,28.25923629]
[1768931218007,4.25244123,126.4,126.36,6.74629944]
[1768931218192,6.74629944,126.41,126.37,4.19293685]
[1768931218618,12.1628245,126.42,126.37,10.93923629]
[1768931218794,18.90912394,126.42,126.37,10.93923629]
[1768931218990,6.74629944,126.41,126.37,4.19293685]
[1768931219203,10.99874067,126.4,126.35,28.25923629]
[1768931219398,4.25244123,126.44,126.38,4.19293685]
[1768931219711,4.25244123,126.38,126.34,1.07352839]
[1768931219886,10.99874067,126.36,126.34,1.07352839]
[1768931220092,6.74629944,126.35,126.34,17.34]
[1768931220409,10.95621625,126.38,126.34,13.23706844]
[1768931220796,7.9113924,126.4,126.35,4.19293685]
[1768931220997,6.74629944,126.42,126.37,10.93923629]
[1768931221212,6.74629944,126.42,126.38,17.34]
[1768931221410,4.20991681,126.47,126.4,10.93923629]
[1768931221601,6.74629944,126.49,126.39,10.93923629]
[1768931221602,6.74629944,126.45,126.39,10.93923629]
[1768931221930,6.74629944,126.44,126.4,17.34]
[1768931222087,6.74629944,126.44,126.35,6.74629944]
[1768931222088,6.74629944,126.42,126.37,4.19293685]
[1768931222294,6.74629944,126.42,126.38,21.53293685]
[1768931222495,6.74629944,126.43,126.38,21.53293685]
[1768931222900,35.860388,126.49,126.38,21.53293685]
[1768931222901,7.90638836,126.48,126.4,4.19293685]
[1768931223119,6.74629944,126.46,126.41,4.19293685]
[1768931223317,6.74629944,126.46,126.42,17.34]
[1768931223499,6.74629944,126.46,126.42,21.53293685]
[1768931223699,6.74629944,126.45,126.42,21.53293685]
[1768931224103,6.74629944,126.46,126.42,21.53293685]
[1768931224628,6.74629944,126.45,126.42,21.53293685]
[1768931225504,6.74629944,126.45,126.42,4.19293685]
[1768931225701,6.74629944,126.45,126.43,17.34]
[1768931226105,6.74629944,126.45,126.42,4.19293685]
[1768931226413,6.74629944,126.44,126.43,17.34]
[1768931226731,6.74629944,126.45,126.43,17.34]
[1768931226904,6.74629944,126.45,126.42,4.19293685]
[1768931227231,6.74629944,126.46,126.43,21.53293685]
[1768931227693,7.90663164,126.48,126.43,4.19293685]
[1768931227895,6.74629944,126.46,126.44,17.34]
[1768931228101,10.95621625,126.45,126.39,4.19293685]
[1768931228407,6.74629944,126.42,126.39,21.53293685]
[1768931228722,6.74629944,126.46,126.41,4.19293685]
[1768931228925,27.67260254,126.48,126.41,4.19293685]
[1768931228926,6.74629944,126.47,126.41,4.19293685]
[1768931229228,6.74629944,126.47,126.42,4.19293685]
[1768931229605,6.74629944,126.46,126.43,17.34]
[1768931230226,27.67260254,126.48,126.43,17.34]
[1768931230227,6.74629944,126.47,126.43,21.53293685]
[1768931230426,6.74629944,126.46,126.41,4.19293685]
[1768931230640,6.74629944,126.46,126.44,17.34]
[1768931230831,6.74629944,126.48,126.44,21.50293685]
[1768931231006,23.97382949,126.5,126.45,4.19293685]
[1768931231007,14.65144262,126.5,126.45,4.19293685]
[1768931231326,6.74629944,126.51,126.46,4.19293685]
[1768931231722,14.65035177,126.52,126.47,4.19293685]
[1768931232026,6.74629944,126.49,126.46,17.34]
[1768931232240,4.20991681,126.51,126.45,4.19293685]
[1768931232404,6.74629944,126.48,126.45,4.19293685]
[1768931232713,27.66377411,126.52,126.46,17.34]
[1768931232913,6.74629944,126.51,126.47,4.19293685]
[1768931233119,6.74629944,126.51,126.42,25.11852502]
[1768931233120,6.74629944,126.48,126.45,21.53293685]
[1768931233928,6.74629944,126.49,126.46,4.19293685]
[1768931234223,6.74629944,126.48,126.46,4.19293685]
[1768931234409,6.74629944,126.49,126.46,4.19293685]
[1768931235139,14.65217119,126.49,126.46,4.19293685]
[1768931235310,6.74629944,126.48,126.46,4.19293685]
[1768931235502,7.90587175,126.49,126.46,4.19293685]
[1768931235699,23.77,126.54,126.46,4.19293685]
[1768931236009,6.74629944,126.51,126.44,12.090388]
[1768931236222,7.90201501,126.55,126.44,12.090388]
[1768931236223,6.74629944,126.48,126.44,4.37489237]
[1768931236436,27.65705254,126.55,126.45,4.37489237]
[1768931236608,6.74629944,126.49,126.45,4.37489237]
[1768931236950,4.08480128,126.51,126.45,4.37489237]
[1768931237227,6.74629944,126.49,126.45,4.37489237]
[1768931237531,6.74629944,126.5,126.45,4.37489237]
[1768931237922,6.74629944,126.5,126.46,4.37489237]
[1768931238300,6.74629944,126.51,126.46,4.37489237]
[1768931238516,14.65095325,126.51,126.46,4.37489237]
[1768931239025,6.75713184,126.49,126.47,4.37489237]
[1768931239321,6.75713184,126.5,126.47,4.37489237]
[1768931239713,6.75713184,126.48,126.45,4.37489237]
[1768931239910,4.08480128,126.5,126.45,4.37489237]
[1768931240121,6.75713184,126.47,126.45,4.37489237]
[1768931240720,6.75713184,126.46,126.41,4.37489237]
[1768931240919,6.75713184,126.44,126.41,4.37489237]
[1768931241520,6.75713184,126.45,126.41,4.37489237]
[1768931241922,14.66500906,126.46,126.41,4.37489237]
[1768931242318,6.75713184,126.46,126.41,4.37489237]
[1768931242721,6.75713184,126.48,126.43,4.37489237]
[1768931242928,7.90534527,126.5,126.44,4.37489237]
[1768931243238,14.66247711,126.5,126.45,4.37489237]
[1768931243434,6.75713184,126.48,126.45,4.37489237]
[1768931243814,6.75713184,126.47,126.43,4.37489237]
[1768931244139,7.90534527,126.5,126.43,4.37489237]
[1768931244340,6.75713184,126.49,126.45,4.37489237]
[1768931244521,6.75713184,126.51,126.47,4.37489237]
[1768931244714,17.32,126.53,126.47,4.37489237]
[1768931244715,6.75713184,126.52,126.47,4.37489237]
[1768931244913,6.75713184,126.51,126.47,4.37489237]
[1768931245330,6.75713184,126.5,126.45,4.37489237]
[1768931245647,6.75713184,126.5,126.45,21.69489237]
[1768931245826,6.75713184,126.5,126.45,28.45202421]
[1768931246227,6.75713184,126.5,126.45,11.13202421]
[1768931246428,6.75713184,126.5,126.45,21.69489237]
[1768931246626,6.75713184,126.48,126.44,17.32]
[1768931247218,10.84193312,126.49,126.44,28.45202421]
[1768931247738,18.74782448,126.49,126.44,21.69489237]
[1768931247939,6.75713184,126.48,126.44,21.69489237]
[1768931248327,18.74782448,126.49,126.44,21.69489237]
[1768931248736,18.74782448,126.49,126.44,4.37489237]
[1768931249041,10.84193312,126.49,126.44,4.37489237]
[1768931249237,14.66268334,126.5,126.45,4.37489237]
[1768931249448,18.74671054,126.51,126.45,11.13202421]
[1768931249939,6.75713184,126.48,126.44,6.2]
[1768931250119,6.75713184,126.47,126.43,21.69489237]
[1768931250319,4.08480128,126.5,126.44,4.37489237]
[1768931250535,6.75713184,126.49,126.44,11.13202421]
[1768931250737,10.84193312,126.5,126.45,4.37489237]
[1768931251624,14.66289514,126.49,126.45,4.37489237]
[1768931252339,19.76128369,126.51,126.46,4.37489237]
[1768931252340,14.66188469,126.51,126.46,4.37489237]
[1768931252516,7.90475285,126.51,126.46,4.37489237]
[1768931252843,6.75713184,126.5,126.46,4.37489237]
[1768931253439,11.98955413,126.51,126.46,4.37489237]
[1768931253631,18.74668597,126.51,126.46,4.37489237]
[1768931254645,7.90409225,126.52,126.48,4.37489237]
[1768931254947,14.65999316,126.54,126.49,11.13202421]
[1768931255245,19.95453682,126.56,126.52,4.37489237]
[1768931255246,0.2,126.56,126.52,4.37489237]
[1768931255540,26.50482433,126.6,126.55,4.37489237]
[1768931255745,6.75713184,126.6,126.55,11.13202421]
[1768931255949,11.98354372,126.61,126.55,11.13202421]
[1768931256146,18.74067556,126.61,126.55,11.13202421]
[1768931256336,7.89897511,126.6,126.55,11.13202421]
[1768931257244,8.09958922,126.59,126.55,4.37489237]
[1768931257552,14.85672106,126.59,126.54,4.37489237]
[1768931257930,6.75713184,126.58,126.53,24.07713184]
[1768931258133,8.09958922,126.59,126.55,4.37489237]
[1768931258332,8.09958922,126.59,126.49,12.1012204]
[1768931258333,4.08480128,126.58,126.49,12.1012204]
[1768931258645,6.75713184,126.55,126.5,6.75713184]
[1768931258850,30.59556918,126.56,126.5,6.75713184]
[1768931259039,18.7433651,126.56,126.5,14.66225548]
[1768931259228,11.98623326,126.56,126.5,14.66225548]
[1768931259424,7.90111552,126.57,126.5,7.90512364]
[1768931259650,0.2,126.59,126.54,6.75713184]
[1768931260054,18.9415286,126.59,126.54,6.75713184]
[1768931260358,0.2,126.59,126.55,11.13202421]
[1768931260734,18.94155454,126.59,126.54,11.13202421]
[1768931261255,18.94155454,126.59,126.54,4.37489237]
[1768931261466,10.84193312,126.58,126.52,11.13202421]
[1768931261931,6.75713184,126.57,126.52,11.13202421]